bitfinex/quotes_BTCUSD_20250917
["timestamp","ask_amount","ask_price","bid_price","bid_amount"]
[1758094087938,0.0011,117300.0,117290.0,0.51682299]
[1758094088149,0.0021,117300.0,117290.0,0.51682299]
[1758094088530,0.0021,117300.0,117290.0,0.85945846]
[1758094092193,0.0021,117300.0,117290.0,0.51682299]
[1758094093431,0.0021,117300.0,117290.0,0.85945846]
[1758094093648,0.0021,117300.0,117290.0,0.51682299]
[1758094094945,0.0021,117300.0,117290.0,0.17218752]
[1758094095144,0.0021,117300.0,117290.0,0.53187474]
[1758094095344,0.0021,117300.0,117290.0,0.51482299]
[1758094095639,0.0021,117300.0,117290.0,0.85745846]
[1758094101631,0.0021,117300.0,117290.0,0.17218752]
[1758094101808,0.0021,117300.0,117290.0,0.78714299]
[1758094104947,0.0021,117300.0,117290.0,0.78718299]
[1758094111877,0.0001,117300.0,117290.0,0.78718299]
[1758094112085,0.0001,117300.0,117290.0,1.12981846]
[1758094115416,0.0001,117300.0,117290.0,0.44454752]
[1758094115626,0.0001,117300.0,117290.0,0.78718299]
[1758094122509,0.0001,117300.0,117290.0,1.12981846]
[1758094123955,0.0001,117300.0,117290.0,1.15542719]
[1758094124792,0.0001,117300.0,117290.0,1.49542719]
[1758094125005,0.0001,117310.0,117300.0,0.17050298]
[1758094125229,0.0001,117310.0,117300.0,0.87651421]
[1758094125386,0.0001,117310.0,117300.0,0.86144392]
[1758094126258,0.0001,117310.0,117300.0,0.86985668]
[1758094126463,0.0001,117310.0,117300.0,1.14097668]
[1758094126845,0.0001,117310.0,117300.0,1.14107668]
[1758094131019,0.0001,117310.0,117300.0,1.22295668]
[1758094131160,0.0001,117310.0,117300.0,1.22205668]
[1758094131361,0.0001,117310.0,117300.0,1.56263668]
[1758094131588,0.0001,117310.0,117300.0,1.63447215]
[1758094131890,0.0001,117320.0,117310.0,0.54064034]
[1758094132084,0.0001,117320.0,117310.0,1.71610273]
[1758094132322,0.0001,117320.0,117310.0,1.98888273]
[1758094132569,0.0001,117330.0,117320.0,0.17047391]
[1758094132824,0.0001,117330.0,117320.0,1.79767485]
[1758094133071,0.0001,117340.0,117330.0,0.17045938]
[1758094133328,0.0001,117340.0,117330.0,0.94130032]
[1758094133567,0.0001,117340.0,117330.0,0.94328032]
[1758094133803,0.0001,117340.0,117330.0,1.23959998]
[1758094133804,0.00021937,117340.0,117330.0,1.23959998]
[1758094135711,0.00021937,117340.0,117330.0,1.24059998]
[1758094136325,0.00021937,117340.0,117330.0,1.24069998]
[1758094136513,0.00021937,117340.0,117330.0,1.24269998]
[1758094138216,0.00021937,117340.0,117330.0,0.97197998]
[1758094138441,0.00021937,117340.0,117330.0,1.24245998]
[1758094141235,0.00021937,117340.0,117330.0,0.97197998]
[1758094141435,0.00021937,117340.0,117330.0,1.24225998]
[1758094141628,0.00021937,117340.0,117330.0,0.97139998]
[1758094141776,0.00021937,117340.0,117330.0,1.24167998]
[1758094142488,0.00021937,117340.0,117330.0,1.24225998]
[1758094142676,0.00021937,117340.0,117330.0,0.55698904]
[1758094142860,0.00021937,117340.0,117330.0,1.24225998]
[1758094144879,0.03399503,117350.0,117340.0,0.17044486]
[1758094145024,0.03399503,117350.0,117340.0,0.51523033]
[1758094145232,0.03399503,117350.0,117340.0,0.44271486]
[1758094145436,0.01963566,117350.0,117340.0,0.78835033]
[1758094145645,0.01963566,117350.0,117340.0,0.79821033]
[1758094145841,0.0001,117350.0,117340.0,0.79821033]
[1758094146276,0.0001,117350.0,117340.0,0.82376761]
[1758094146460,0.0001,117350.0,117340.0,0.82476761]
[1758094146652,0.0001,117350.0,117340.0,0.82486761]
[1758094147292,0.0001,117350.0,117340.0,0.21215214]
[1758094147496,0.0001,117350.0,117340.0,0.83309238]
[1758094147868,0.0001,117350.0,117340.0,0.79478976]
[1758094148394,0.0001,117350.0,117340.0,0.49045691]
[1758094148568,0.0001,117350.0,117340.0,0.79478976]
[1758094149891,0.0001,117350.0,117340.0,0.79466976]
[1758094151305,0.0001,117350.0,117340.0,0.79458976]
[1758094152137,0.0001,117350.0,117340.0,0.52478976]
[1758094152342,0.0001,117350.0,117340.0,0.79454976]
[1758094152541,0.06560443,117360.0,117350.0,0.17043033]
[1758094152853,0.06560443,117360.0,117350.0,0.47691318]
[1758094153432,0.06560443,117360.0,117350.0,0.47991318]
[1758094154677,0.06560443,117360.0,117350.0,0.48001318]
[1758094154895,0.06560443,117360.0,117350.0,0.17568033]
[1758094155098,0.06560443,117360.0,117350.0,0.48001318]
[1758094156183,0.08897443,117360.0,117350.0,0.74669318]
[1758094157536,0.08897443,117360.0,117350.0,0.47701318]
[1758094157729,0.09093443,117360.0,117350.0,0.74669318]
[1758094159219,0.08733443,117360.0,117350.0,0.74669318]
[1758094159438,0.25775024,117360.0,117350.0,0.74669318]
[1758094159650,0.23821458,117360.0,117350.0,0.74669318]
[1758094160336,0.23821458,117360.0,117350.0,0.17268033]
[1758094160584,0.24136458,117360.0,117350.0,0.74669318]
[1758094160734,0.24136458,117360.0,117350.0,0.44236033]
[1758094160946,0.24136458,117360.0,117350.0,0.82853318]
[1758094161314,0.08690226,117360.0,117350.0,0.82853318]
[1758094161522,0.36335518,117360.0,117350.0,0.08194]
[1758094161798,0.34381952,117360.0,117350.0,0.35162]
[1758094162314,0.34381952,117360.0,117350.0,0.52205033]
[1758094163417,0.34381952,117360.0,117350.0,0.35162]
[1758094164914,0.34381952,117360.0,117350.0,0.08194]
[1758094165130,0.34381952,117360.0,117350.0,0.35162]
[1758094166265,0.34383516,117360.0,117350.0,0.52205033]
[1758094167130,0.32788167,117360.0,117350.0,0.52205033]
[1758094170003,0.15746586,117360.0,117350.0,0.52205033]
[1758094170434,0.15746586,117360.0,117350.0,0.82638318]
[1758094170635,0.15746586,117360.0,117350.0,0.82839318]
[1758094171038,0.30136167,117360.0,117350.0,0.52406033]
[1758094171244,0.30136167,117360.0,117350.0,0.82839318]
[1758094171245,0.32846167,117360.0,117350.0,0.82839318]
[1758094172225,0.32846167,117360.0,117350.0,0.52406033]
[1758094172429,0.15804586,117360.0,117350.0,0.52406033]
[1758094172639,0.04248441,117360.0,117350.0,0.83136318]
[1758094172847,0.06202007,117360.0,117350.0,0.83136318]
[1758094173483,0.08609007,117360.0,117350.0,0.82839318]
[1758094173907,0.08820007,117360.0,117350.0,0.82839318]
[1758094175506,0.25861588,117360.0,117350.0,0.25438033]
[1758094175714,0.24211022,117360.0,117350.0,0.82634318]
[1758094176729,0.24211022,117360.0,117350.0,0.25237033]
[1758094176730,0.21804022,117360.0,117350.0,0.25237033]
[1758094176928,0.24211022,117360.0,117350.0,0.52201033]
[1758094177333,0.24211022,117360.0,117350.0,0.25237033]
[1758094177530,0.24211022,117360.0,117350.0,0.52201033]
[1758094177739,0.24211867,117360.0,117350.0,0.52201033]
[1758094178834,0.07170286,117360.0,117350.0,0.52201033]
[1758094179037,0.09123852,117360.0,117350.0,0.52201033]
[1758094179237,0.09123852,117360.0,117350.0,0.82835318]
[1758094179932,0.09123852,117360.0,117350.0,0.25237033]
[1758094180179,0.34815578,117360.0,117350.0,0.52201033]
[1758094180359,0.32862012,117360.0,117350.0,0.52201033]
[1758094181525,0.32862012,117360.0,117350.0,0.08194]
[1758094181768,0.32862012,117360.0,117350.0,0.35158]
[1758094182595,0.32862012,117360.0,117350.0,0.08194]
[1758094182757,0.32862012,117360.0,117350.0,0.52201033]
[1758094184544,0.32862012,117360.0,117350.0,0.08194]
[1758094184760,0.63295297,117360.0,117350.0,0.08194]
[1758094184960,0.63295297,117360.0,117350.0,0.26974]
[1758094185610,0.63295274,117360.0,117350.0,0.26964]
[1758094187066,0.32861989,117360.0,117350.0,0.26964]
[1758094187847,0.63295274,117360.0,117350.0,0.26964]
[1758094192125,0.17043033,117350.0,117340.0,0.08194]
[1758094192392,0.30956007,117350.0,117340.0,0.52202486]
[1758094192581,0.29213441,117350.0,117340.0,0.52202486]
[1758094192783,0.29223441,117350.0,117340.0,0.52202486]
[1758094193801,0.29223441,117350.0,117340.0,0.52302486]
[1758094196172,0.29223441,117350.0,117340.0,0.35258]
[1758094197252,0.29223441,117350.0,117340.0,0.52302486]
[1758094197878,0.30053748,117350.0,117340.0,0.52302486]
[1758094200240,0.30053748,117350.0,117340.0,0.08294]
[1758094200423,0.30053748,117350.0,117340.0,0.35254]
[1758094201694,0.29223441,117350.0,117340.0,0.35254]
[1758094205204,0.12180408,117350.0,117340.0,0.52298486]
[1758094205450,0.29223441,117350.0,117340.0,0.52298486]
[1758094206137,0.12180408,117350.0,117340.0,0.52298486]
[1758094206363,0.29223441,117350.0,117340.0,0.52512486]
[1758094206602,0.12180408,117350.0,117340.0,0.52512486]
[1758094207035,0.31177007,117350.0,117340.0,0.52298486]
[1758094207246,0.29223441,117350.0,117340.0,0.52298486]
[1758094207959,0.26513441,117350.0,117340.0,0.52512486]
[1758094208158,0.28946441,117350.0,117340.0,0.52512486]
[1758094208361,0.29262441,117350.0,117340.0,0.25552486]
[1758094208590,0.29262441,117350.0,117340.0,0.52512486]
[1758094208762,0.28946441,117350.0,117340.0,0.52512486]
[1758094208969,0.11903408,117350.0,117340.0,0.52512486]
[1758094209408,0.11903408,117350.0,117340.0,0.86757922]
[1758094209618,0.0001,117350.0,117340.0,0.87062922]
[1758094209828,0.0001,117350.0,117340.0,0.88048922]
[1758094210250,0.0001,117350.0,117340.0,0.61088922]
[1758094210489,0.0001,117350.0,117340.0,0.88048922]
[1758094212770,0.0001,117350.0,117340.0,0.53803486]
[1758094212989,0.0001,117350.0,117340.0,0.88048922]
[1758094215329,0.0001,117350.0,117340.0,0.88072922]
[1758094217106,0.0001,117350.0,117340.0,0.53827486]
[1758094217348,0.0001,117350.0,117340.0,0.88072922]
[1758094219508,0.23613602,117360.0,117350.0,0.17043033]
[1758094219712,0.23815602,117360.0,117350.0,0.51502469]
[1758094219929,0.23815602,117360.0,117350.0,0.51512469]
[1758094220300,0.23815602,117360.0,117350.0,0.17267033]
[1758094220556,0.23815602,117360.0,117350.0,0.51512469]
[1758094223632,0.23815602,117360.0,117350.0,0.17267033]
[1758094223838,0.24131602,117360.0,117350.0,0.17267033]
[1758094224122,0.24131602,117360.0,117350.0,0.51512469]
[1758094224344,0.24131435,117360.0,117350.0,0.51512469]
[1758094225644,0.23815435,117360.0,117350.0,0.51512469]
[1758094228410,0.23815435,117360.0,117350.0,0.34469436]
[1758094228607,0.24136435,117360.0,117350.0,0.44013033]
[1758094229775,0.24136435,117360.0,117350.0,0.44220033]
[1758094230221,0.24136435,117360.0,117350.0,0.78465469]
[1758094230437,0.24136435,117360.0,117350.0,0.44220033]
[1758094230658,0.24136435,117360.0,117350.0,0.17260033]
[1758094230917,0.23815435,117360.0,117350.0,0.78465469]
[1758094231401,0.24136435,117360.0,117350.0,0.78465469]
[1758094233541,0.06773769,117360.0,117350.0,0.78465469]
[1758094233834,0.0354,117360.0,117350.0,0.78769469]
[1758094234784,0.0354,117360.0,117350.0,0.79607941]
[1758094235723,0.0354,117360.0,117350.0,0.45362505]
[1758094235915,0.0354,117360.0,117350.0,0.80593941]
[1758094236358,0.0354,117360.0,117350.0,0.79751469]
[1758094237621,0.0354,117360.0,117350.0,0.52795469]
[1758094238038,0.0354,117360.0,117350.0,0.79751469]
[1758094239391,0.0354,117360.0,117350.0,0.80621998]
[1758094243204,0.0341,117360.0,117350.0,0.80621998]
[1758094244007,0.0341,117360.0,117350.0,0.46376562]
[1758094244179,0.0341,117360.0,117350.0,0.80621998]
[1758094245198,0.0341,117360.0,117350.0,0.53665998]
[1758094245416,0.0341,117360.0,117350.0,0.80621998]
[1758094245623,0.0341,117360.0,117350.0,0.79635998]
[1758094246073,0.0341,117360.0,117350.0,0.45390562]
[1758094246322,0.0341,117360.0,117350.0,0.79635998]
[1758094246936,0.0341,117360.0,117350.0,0.80621998]
[1758094247499,0.0341,117360.0,117350.0,0.79635998]
[1758094250415,0.0341,117360.0,117350.0,0.45390562]
[1758094250563,0.0341,117360.0,117350.0,0.79635998]
[1758094250781,0.0341,117360.0,117350.0,0.80621998]
[1758094252462,0.0341,117360.0,117350.0,0.79635998]
[1758094254485,0.0341,117360.0,117350.0,0.80621998]
[1758094255130,0.0341,117360.0,117350.0,0.79635998]
[1758094255674,0.0341,117360.0,117350.0,0.80621998]
[1758094257245,0.0341,117360.0,117350.0,0.46376562]
[1758094257437,0.0341,117360.0,117350.0,0.79635998]
[1758094257801,0.0341,117360.0,117350.0,0.80621998]
[1758094258416,0.0341,117360.0,117350.0,0.79621998]
[1758094259915,0.0341,117360.0,117350.0,0.78635998]
[1758094260115,0.0341,117360.0,117350.0,0.79621998]
[1758094260407,0.0341,117360.0,117350.0,0.79631998]
[1758094261359,0.0341,117360.0,117350.0,0.82191598]
[1758094261565,0.034,117360.0,117350.0,1.50437034]
[1758094261798,0.034,117360.0,117350.0,1.16191598]
[1758094262659,0.034,117360.0,117350.0,1.16391598]
[1758094262854,0.034,117360.0,117350.0,1.16491598]
[1758094263261,0.034,117360.0,117350.0,1.16483598]
[1758094264896,0.034,117360.0,117350.0,1.22735322]
[1758094265103,0.034,117360.0,117350.0,1.56980758]
[1758094265307,0.034,117360.0,117350.0,0.95787322]
[1758094265737,0.034,117360.0,117350.0,1.22735322]
[1758094266931,0.034,117360.0,117350.0,1.22731322]
[1758094269272,0.034,117360.0,117350.0,0.95787322]
[1758094269503,0.034,117360.0,117350.0,1.22731322]
[1758094269922,0.034,117360.0,117350.0,1.18912706]
[1758094273670,0.034,117360.0,117350.0,0.88485886]
[1758094273875,0.034,117360.0,117350.0,1.18912706]
[1758094275932,0.034,117360.0,117350.0,0.88485886]
[1758094276133,0.034,117360.0,117350.0,1.17926706]
[1758094276338,0.034,117360.0,117350.0,1.18912706]
[1758094278071,0.034,117360.0,117350.0,1.18908706]
[1758094278669,0.034,117360.0,117350.0,0.90678706]
[1758094278858,0.03598,117360.0,117350.0,1.17618706]
[1758094279058,0.05921,117360.0,117350.0,1.17618706]
[1758094279549,0.034,117360.0,117350.0,1.17618706]
[1758094280697,0.034,117360.0,117350.0,1.17934706]
[1758094280957,0.034,117360.0,117350.0,0.87507886]
[1758094281202,0.034,117360.0,117350.0,1.17934706]
[1758094282407,0.03598,117360.0,117350.0,0.87191886]
[1758094282629,0.05921,117360.0,117350.0,1.17618706]
[1758094284465,0.034,117360.0,117350.0,1.17934706]
[1758094285851,0.034,117360.0,117350.0,1.18920706]
[1758094286600,0.03598,117360.0,117350.0,0.84426982]
[1758094286836,0.05921,117360.0,117350.0,1.11366982]
[1758094287310,0.034,117360.0,117350.0,1.11366982]
[1758094287925,0.034,117360.0,117350.0,0.80940162]
[1758094288147,0.034,117360.0,117350.0,1.11366982]
[1758094288566,0.034,117360.0,117350.0,1.11667982]
[1758094291318,0.034,117360.0,117350.0,1.12653982]
[1758094297767,0.034,117360.0,117350.0,1.10094382]
[1758094297973,0.034,117360.0,117350.0,1.09108382]
[1758094301730,0.03602,117360.0,117350.0,0.80996853]
[1758094301918,0.31873726,117360.0,117350.0,0.0031]
[1758094302122,0.32472734,117360.0,117350.0,0.27246]
[1758094302537,0.32482734,117360.0,117350.0,0.27246]
[1758094304651,0.33323494,117360.0,117350.0,0.27246]
[1758094307178,0.33323494,117360.0,117350.0,0.0031]
[1758094307379,0.33323494,117360.0,117350.0,0.27242]
[1758094309033,0.32482734,117360.0,117350.0,0.27242]
[1758094311358,0.32227111,117360.0,117350.0,0.27242]
[1758094312500,0.33075996,117360.0,117350.0,0.0031]
[1758094312753,0.33075243,117360.0,117350.0,0.27242]
[1758094313553,0.32226358,117360.0,117350.0,0.27242]
[1758094316466,0.33074392,117360.0,117350.0,0.27242]
[1758094318794,0.32226358,117360.0,117350.0,0.27242]
[1758094320559,0.33073882,117360.0,117350.0,0.27242]
[1758094321268,0.33073882,117360.0,117350.0,0.27238]
[1758094322943,0.32226358,117360.0,117350.0,0.0031]
[1758094323148,0.32226358,117360.0,117350.0,0.27242]
[1758094324209,0.31933358,117360.0,117350.0,0.27442]
[1758094324615,0.32247358,117360.0,117350.0,0.27442]
[1758094324829,0.32247358,117360.0,117350.0,0.0031]
[1758094324967,0.32247358,117360.0,117350.0,0.27238]
[1758094329828,0.32247358,117360.0,117350.0,0.61476608]
[1758094330991,0.32247358,117360.0,117350.0,0.0031]
[1758094331200,0.32247358,117360.0,117350.0,0.27234]
[1758094331680,0.66485966,117360.0,117350.0,0.27234]
[1758094332794,0.66485966,117360.0,117350.0,0.0031]
[1758094332995,0.66485966,117360.0,117350.0,0.27234]
[1758094332996,0.69045908,117360.0,117350.0,0.27234]
[1758094333711,0.43457445,117360.0,117350.0,0.0031]
[1758094333909,1.30208516,117360.0,117350.0,0.0031]
[1758094334183,1.31806912,117360.0,117350.0,0.0031]
[1758094334630,0.97568304,117360.0,117350.0,0.0031]
[1758094334844,0.97568304,117360.0,117350.0,0.003]
[1758094335058,0.70644304,117360.0,117350.0,0.001]
[1758094335272,0.97668304,117360.0,117350.0,0.001]
[1758094335727,0.97568304,117360.0,117340.0,0.26924]
[1758094335965,0.64624352,117350.0,117340.0,0.26924]
[1758094336201,0.63475041,117350.0,117340.0,0.26924]
[1758094336446,0.63485041,117350.0,117340.0,0.26924]
[1758094336691,0.66045291,117350.0,117340.0,0.26924]
[1758094336916,0.31806683,117350.0,117340.0,0.26924]
[1758094337131,0.66045291,117350.0,117340.0,0.26924]
[1758094337786,0.17044486,117340.0,117330.0,0.0001]
[1758094338026,0.5323666,117340.0,117330.0,0.26934]
[1758094338216,0.60532147,117340.0,117330.0,0.0001]
[1758094338411,0.60532147,117340.0,117330.0,0.26934]
[1758094338652,0.66047633,117340.0,117330.0,0.26934]
[1758094339535,0.66047633,117340.0,117330.0,0.27034]
[1758094340053,0.66047633,117340.0,117330.0,0.0021]
[1758094340306,0.66047633,117340.0,117330.0,0.0011]
[1758094340534,0.66047633,117340.0,117330.0,0.0001]
[1758094344279,1.08425221,117340.0,117330.0,0.0001]
[1758094344705,1.69345221,117340.0,117330.0,0.0001]
[1758094344985,1.69345221,117340.0,117310.0,0.0001]
[1758094344986,0.17047391,117320.0,117310.0,0.0001]
[1758094345270,0.62496574,117320.0,117310.0,0.0001]
[1758094345540,0.60749008,117320.0,117310.0,0.0001]
[1758094346046,0.63498008,117320.0,117310.0,0.0001]
[1758094346329,0.66058833,117320.0,117310.0,0.0001]
[1758094349611,0.66891683,117320.0,117310.0,0.0001]
[1758094349846,0.17048844,117310.0,117300.0,0.35114]
[1758094350071,0.55944018,117310.0,117300.0,0.35114]
[1758094350248,0.54201452,117310.0,117300.0,0.35114]
[1758094350452,0.54798624,117310.0,117300.0,0.35114]
[1758094351219,0.54808624,117310.0,117300.0,0.35114]
[1758094352069,0.54808624,117310.0,117300.0,0.35214]
[1758094354803,0.54808624,117310.0,117300.0,0.35314]
[1758094355428,0.54808624,117310.0,117300.0,0.52364298]
[1758094355956,0.54808624,117310.0,117300.0,0.35314]
[1758094357953,0.20570016,117310.0,117300.0,0.35314]
[1758094358174,0.54808624,117310.0,117300.0,0.35314]
[1758094358636,0.20570016,117310.0,117300.0,0.35314]
[1758094359056,0.20570016,117310.0,117300.0,0.35329551]
[1758094360582,0.29220161,117310.0,117300.0,0.08409551]
[1758094360936,0.31781268,117310.0,117300.0,0.35325551]
[1758094361257,0.29220161,117310.0,117300.0,0.35325551]
[1758094363512,0.30813935,117310.0,117300.0,0.35325551]
[1758094364964,0.30813935,117310.0,117300.0,0.35125551]
[1758094365168,0.30813935,117310.0,117300.0,0.26941551]
[1758094370760,0.30813935,117310.0,117300.0,0.00025551]
[1758094370934,0.30813935,117310.0,117300.0,0.26937551]
[1758094371143,0.65052543,117310.0,117300.0,0.26937551]
[1758094371401,0.65052543,117310.0,117300.0,0.00025551]
[1758094371602,0.65052543,117310.0,117300.0,0.26937551]
[1758094372379,0.30813935,117310.0,117300.0,0.00025551]
[1758094372597,0.30813935,117310.0,117300.0,0.26937551]
[1758094372839,0.65052543,117310.0,117300.0,0.26927551]
[1758094373037,0.67613649,117310.0,117300.0,0.26927551]
[1758094373994,0.67613649,117310.0,117300.0,0.00015551]
[1758094374211,0.67713649,117310.0,117300.0,0.00015551]
[1758094374424,0.76463794,117310.0,117300.0,0.00015551]
[1758094374625,0.76363794,117310.0,117300.0,0.00015551]
[1758094375086,1.03371794,117310.0,117300.0,0.00015551]
[1758094375303,0.94721649,117310.0,117300.0,0.00015551]
[1758094376507,1.28721649,117310.0,117300.0,0.00015551]
[1758094377142,1.62960257,117310.0,117300.0,0.00015551]
[1758094377989,1.67960257,117310.0,117300.0,0.00015551]
[1758094378198,0.17051752,117290.0,117280.0,0.0001]
[1758094378424,0.90993017,117290.0,117280.0,0.0001]
[1758094378660,0.17053206,117280.0,117270.0,0.02062]
[1758094378951,0.19551152,117280.0,117270.0,0.02062]
[1758094379162,0.19765152,117280.0,117270.0,0.26918]
[1758094379363,0.22255152,117280.0,117270.0,0.26918]
[1758094379813,0.22255152,117280.0,117270.0,0.26929937]
[1758094380054,0.22265152,117280.0,117270.0,0.26929937]
[1758094380680,0.22265152,117280.0,117270.0,0.27136937]
[1758094380850,0.04904946,117280.0,117270.0,0.44191597]
[1758094381068,0.23911718,117280.0,117270.0,0.78430205]
[1758094381276,0.21958152,117280.0,117270.0,0.78630205]
[1758094381483,0.21958152,117280.0,117270.0,0.61575545]
[1758094381677,0.21958152,117280.0,117270.0,0.78630205]
[1758094382049,0.02200946,117280.0,117270.0,1.14150813]
[1758094382297,0.02200946,117280.0,117270.0,1.56800958]
[1758094382528,0.00607172,117280.0,117270.0,1.48250813]
[1758094382758,0.00607172,117280.0,117270.0,1.48050813]
[1758094382970,0.00607172,117280.0,117270.0,1.50611907]
[1758094383418,0.00597172,117280.0,117270.0,1.50611907]
[1758094384028,0.00597172,117280.0,117270.0,1.50511907]
[1758094384628,0.00597172,117280.0,117270.0,1.90711907]
[1758094385371,0.0001,117290.0,117280.0,0.51053206]
[1758094385585,0.00598153,117290.0,117280.0,0.85291814]
[1758094385807,0.00598153,117290.0,117280.0,0.86573814]
[1758094386028,0.00598153,117290.0,117280.0,0.86780814]
[1758094387143,0.01605081,117310.0,117300.0,0.17050298]
[1758094387362,0.09258279,117310.0,117300.0,0.79897935]
[1758094387582,0.1085336,117310.0,117300.0,0.78192906]
[1758094387866,0.1085336,117310.0,117300.0,0.79681906]
[1758094388127,0.1085336,117310.0,117300.0,0.18539298]
[1758094388373,0.1085336,117310.0,117300.0,0.79681906]
[1758094388611,0.1105336,117310.0,117300.0,0.78695906]
[1758094388837,0.1105336,117310.0,117300.0,0.51791906]
[1758094389076,0.1105336,117310.0,117300.0,0.78695906]
[1758094389289,0.1105336,117310.0,117300.0,0.78705906]
[1758094389739,0.1105336,117310.0,117300.0,0.79691906]
[1758094390468,0.00808134,117310.0,117300.0,0.79691906]
[1758094391365,0.00808134,117310.0,117300.0,0.45449298]
[1758094391612,0.00808134,117310.0,117300.0,0.79687906]
[1758094391914,0.00808134,117310.0,117300.0,0.45449298]
[1758094392375,0.0031,117310.0,117300.0,0.45449298]
[1758094393081,0.0031,117310.0,117300.0,0.45445298]
[1758094394155,0.0031,117310.0,117300.0,0.44459298]
[1758094394395,0.0031,117310.0,117300.0,0.75901805]
[1758094394801,0.0031,117310.0,117300.0,0.45445298]
[1758094395020,0.0021,117310.0,117300.0,0.75901805]
[1758094395156,0.0021,117310.0,117300.0,0.76734485]
[1758094395366,0.0001,117310.0,117300.0,0.76734485]
[1758094395606,0.0001,117310.0,117300.0,0.46277978]
[1758094395823,0.0011,117310.0,117300.0,0.49838485]
[1758094396011,0.0011,117310.0,117300.0,0.76734485]
[1758094396456,0.0011,117310.0,117300.0,0.46277978]
[1758094396731,0.0011,117310.0,117300.0,0.19381978]
[1758094396937,0.0011,117310.0,117300.0,0.46277978]
[1758094398283,0.0011,117310.0,117300.0,0.45441298]
[1758094399156,0.0011,117310.0,117300.0,0.17563298]
[1758094399406,0.03121,117310.0,117300.0,0.17267298]
[1758094399627,0.03121,117310.0,117300.0,0.43952298]
[1758094399845,0.03121,117310.0,117300.0,0.44159298]
[1758094400295,0.02814,117310.0,117300.0,0.44159298]
[1758094403516,0.0011,117310.0,117300.0,0.44159298]
[1758094404618,0.02063566,117310.0,117300.0,0.44159298]
[1758094404823,0.0011,117310.0,117300.0,0.44159298]
[1758094405060,0.0011,117310.0,117300.0,0.44455298]
[1758094406595,0.0011,117310.0,117300.0,0.44159298]
[1758094407357,0.02063566,117310.0,117300.0,0.44159298]
[1758094408463,0.0011,117310.0,117300.0,0.44159298]
[1758094409557,0.0011,117310.0,117300.0,0.17267298]
[1758094409784,0.02626,117310.0,117300.0,0.44151298]
[1758094410505,0.04579566,117310.0,117300.0,0.44151298]
[1758094411635,0.0011,117310.0,117300.0,0.44458298]
[1758094412144,0.0011,117310.0,117300.0,0.75900805]
[1758094413126,0.0011,117310.0,117300.0,1.09900805]
[1758094413365,0.0011,117310.0,117300.0,1.129524]
[1758094413626,0.0001,117310.0,117300.0,1.129524]
[1758094413849,0.0001,117310.0,117300.0,1.24617735]
[1758094414070,0.0001,117310.0,117300.0,1.22207533]
[1758094414299,0.0001,117310.0,117300.0,1.62007533]
[1758094414532,0.0001,117310.0,117300.0,1.62307533]
[1758094414745,0.0001,117320.0,117310.0,0.51048844]
[1758094414987,0.0001,117320.0,117310.0,0.91448496]
[1758094415233,0.0001,117320.0,117310.0,0.91656496]
[1758094415428,0.0001,117320.0,117310.0,0.91997843]
[1758094415878,0.0001,117330.0,117320.0,0.17047391]
[1758094416106,0.0001,117330.0,117320.0,0.82567898]
[1758094416323,0.0001,117330.0,117320.0,0.84068898]
[1758094417597,0.0001,117330.0,117320.0,0.84178898]
[1758094419290,0.0001,117330.0,117320.0,0.84174898]
[1758094419507,0.0001,117330.0,117320.0,0.84274898]
[1758094421119,0.0001,117330.0,117320.0,0.57402898]
[1758094421490,0.0001,117330.0,117320.0,0.25960391]
[1758094421693,0.17251938,117330.0,117320.0,0.52525391]
[1758094421897,0.19871938,117330.0,117320.0,0.52317391]
[1758094422539,0.19871938,117330.0,117320.0,0.25445391]
[1758094422743,0.19871938,117330.0,117320.0,0.52317391]
[1758094423032,0.19871938,117330.0,117320.0,0.25445391]
[1758094423254,0.2046945,117330.0,117320.0,0.52313391]
[1758094426097,0.2046945,117330.0,117320.0,0.08398]
[1758094426359,0.2046945,117330.0,117320.0,0.35262]
[1758094427145,0.66374188,117330.0,117320.0,0.0021]
[1758094427356,0.61169775,117330.0,117320.0,0.0021]
[1758094427856,0.61169775,117330.0,117320.0,0.002]
[1758094429836,0.61169775,117330.0,117320.0,0.001]
[1758094430328,0.17047391,117320.0,117310.0,0.00021937]
[1758094430549,0.60298794,117320.0,117310.0,0.00021937]
[1758094430774,0.61161228,117320.0,117310.0,0.00021937]
[1758094431179,0.61171228,117320.0,117310.0,0.00021937]
[1758094431456,0.61171413,117320.0,117310.0,0.00021937]
[1758094431682,0.13667515,117320.0,117310.0,0.17070781]
[1758094431907,0.09257657,117320.0,117310.0,0.48042288]
[1758094432129,0.08860145,117320.0,117310.0,0.48042288]
[1758094432349,0.00807512,117320.0,117310.0,0.49028288]
[1758094432565,0.0021,117320.0,117310.0,0.49028288]
[1758094433225,0.0021,117320.0,117310.0,0.57212288]
[1758094433431,0.0031,117320.0,117310.0,0.57212288]
[1758094433826,0.0021,117320.0,117310.0,0.57212288]
[1758094434063,0.0021,117320.0,117310.0,0.60176912]
[1758094434267,0.0021,117320.0,117310.0,0.60276912]
[1758094434473,0.0001,117320.0,117310.0,0.60276912]
[1758094434682,0.0001,117320.0,117310.0,0.60376912]
[1758094435138,0.0001,117320.0,117310.0,0.60276912]
[1758094435346,0.0001,117320.0,117310.0,0.60476912]
[1758094436754,0.0001,117320.0,117310.0,0.57512288]
[1758094444436,0.0001,117320.0,117310.0,0.27055781]
[1758094444674,0.0001,117320.0,117310.0,0.57512288]
[1758094449705,0.0001,117320.0,117310.0,0.27055781]
[1758094450149,0.0001,117320.0,117310.0,0.57512288]
[1758094451821,0.0001,117320.0,117310.0,0.61309497]
[1758094453243,0.0001,117320.0,117310.0,0.27055781]
[1758094453450,0.0001,117320.0,117310.0,0.61309497]
[1758094454082,0.17057391,117320.0,117310.0,0.61309497]
[1758094454285,0.17057391,117320.0,117310.0,0.53915781]
[1758094454518,0.17057391,117320.0,117310.0,0.88169497]
[1758094454739,0.17057391,117320.0,117310.0,0.53915781]
[1758094454961,0.0001,117320.0,117310.0,0.88169497]
[1758094455172,0.0001,117320.0,117310.0,0.53915781]
[1758094455383,0.0001,117320.0,117310.0,0.88169497]
[1758094456482,0.0001,117320.0,117310.0,0.61309497]
[1758094456735,0.0001,117320.0,117310.0,0.88169497]
[1758094458727,0.0001,117320.0,117310.0,0.53915781]
[1758094458964,0.17057391,117320.0,117310.0,0.88169497]
[1758094459809,0.0001,117320.0,117310.0,0.88169497]
[1758094460734,0.0001,117320.0,117310.0,0.53915781]
[1758094460940,0.0001,117320.0,117310.0,0.88169497]
[1758094461304,0.17057391,117320.0,117310.0,0.27055781]